[Event "Gibraltar Masters 18th"]
[Site "Gibraltar"]
[Date "2020.01.30"]
[Round "10.3"]
[White "Vachier-Lagrave, Maxime"]
[Black "Maghsoodloo, Parham"]
[Result "1-0"]
[ECO "D38"]
[WhiteElo "2770"]
[BlackElo "2674"]
[PlyCount "199"]
[EventDate "2020.01.21"]
[EventType "swiss"]
[EventRounds "10"]
[EventCountry "GGB"]
[SourceTitle "BritBase"]
[Source "John Saunders"]
[SourceDate "2021.06.05"]
[SourceVersion "1"]
[SourceVersionDate "2021.06.05"]
[SourceQuality "1"]
[TimeControl "40/100:0"]
[WhiteClock "0:16:14"]
[BlackClock "0:01:44"]

1. d4 {[%emt 0:00:00]} d5 {[%emt 0:00:00]} 2. c4 {[%emt 0:00:00]} e6 {[%emt 0:
00:00]} 3. Nc3 {[%emt 0:00:00]} Bb4 {[%emt 0:00:00]} 4. Nf3 {[%emt 0:00:00]}
Nf6 {[%emt 0:00:00]} 5. cxd5 {[%emt 0:00:00]} exd5 {[%emt 0:00:00]} 6. Bg5 {
[%emt 0:00:00]} O-O {[%emt 0:00:00]} 7. e3 {[%emt 0:00:00]} Bf5 {[%emt 0:00:00]
} 8. Qb3 {[%emt 0:00:00]} Bxc3+ {[%emt 0:00:00]} 9. Qxc3 {[%emt 0:00:00]} h6 {
[%emt 0:00:00]} 10. Bf4 {[%emt 0:00:00]} Ne4 {[%emt 0:00:00]} 11. Qxc7 {
[%emt 0:00:00]} Nc6 {[%emt 0:00:00]} 12. Bb5 {[%emt 0:00:00]} Rc8 {[%emt 0:00:
00]} 13. Qxd8 {[%emt 0:00:00]} Rfxd8 {[%emt 0:00:00]} 14. O-O {[%emt 0:00:00]}
g5 {[%emt 0:00:00]} 15. Bg3 {[%emt 0:00:00]} h5 {[%emt 0:00:00]} 16. h3 {
[%emt 0:00:00]} Ne7 {[%emt 0:00:00]} 17. Rfc1 {[%emt 0:00:00]} Nxg3 {[%emt 0:
00:00]} 18. fxg3 {[%emt 0:00:00]} g4 {[%emt 0:00:00]} 19. hxg4 {[%emt 0:00:00]}
hxg4 {[%emt 0:00:00]} 20. Nd2 {[%emt 0:00:00]} Bc2 {[%emt 0:00:00]} 21. Nb1 {
[%emt 0:00:00]} Bxb1 {[%emt 0:00:00]} 22. Raxb1 {[%emt 0:00:00]} f5 {[%emt 0:
00:00]} 23. Bd3 {[%emt 0:00:00]} Kf7 {[%emt 0:00:00]} 24. Rc3 {[%emt 0:00:00]}
Ke6 {[%emt 0:00:00]} 25. Kf2 {[%emt 0:00:00]} Rh8 {[%emt 0:00:00]} 26. Ra3 {
[%emt 0:00:00]} Ra8 {[%emt 0:00:00]} 27. Rc1 {[%emt 0:00:00]} Nc8 {[%emt 0:00:
00]} 28. b4 {[%emt 0:00:00]} Nd6 {[%emt 0:00:00]} 29. b5 {[%emt 0:00:00]} Rhc8
{[%emt 0:00:00]} 30. Rc5 {[%emt 0:00:00]} Rd8 {[%emt 0:00:00]} 31. Rac3 {
[%emt 0:00:00]} Rd7 {[%emt 0:00:00]} 32. a4 {[%emt 0:00:00]} b6 {[%emt 0:00:00]
} 33. Rc6 {[%emt 0:00:00]} Rdd8 {[%emt 0:00:00]} 34. Ke2 {[%emt 0:00:00]} Rd7 {
[%emt 0:00:00]} 35. Rc1 {[%emt 0:00:00]} Rh8 {[%emt 0:00:00]} 36. a5 {[%emt 0:
00:00]} bxa5 {[%emt 0:00:00]} 37. Ra6 {[%emt 0:00:00]} Rh2 {[%emt 0:00:40]} 38.
Kf2 {[%emt 0:00:00]} Rhh7 {[%emt 0:00:14]} 39. Rcc6 {[%emt 0:00:00]} Rhf7 {
[%emt 0:00:00]} 40. Ke2 {[%emt 0:00:00]} a4 {[%emt 0:00:04]} 41. Rxa4 {[%emt 0:
00:49]} Rb7 {[%emt 0:01:49]} 42. Raa6 {[%emt 0:00:00]} Rfd7 {[%emt 0:00:00]}
43. Kd2 {[%emt 0:00:00]} Ke7 {[%emt 0:00:00]} 44. Rc5 {[%emt 0:00:00]} Ke6 {
[%emt 0:00:00]} 45. Kc3 {[%emt 0:00:00]} Rb8 {[%emt 0:00:00]} 46. Kb4 {[%emt 0:
00:00]} Rh8 {[%emt 0:00:00]} 47. Rc1 {[%emt 0:00:00]} Rh2 {[%emt 0:00:00]} 48.
Rf1 {[%emt 0:00:00]} Ke7 {[%emt 0:00:00]} 49. Bxf5 {[%emt 0:00:00]} Nxf5 {
[%emt 0:00:00]} 50. Rxf5 {[%emt 0:00:00]} Rxg2 {[%emt 0:00:00]} 51. Rg5 {
[%emt 0:00:00]} Rxg3 {[%emt 0:00:00]} 52. Rg7+ {[%emt 0:00:00]} Ke8 {[%emt 0:
00:00]} 53. Rxd7 {[%emt 0:00:00]} Kxd7 {[%emt 0:00:00]} 54. Rxa7+ {[%emt 0:00:
00]} Ke6 {[%emt 0:00:00]} 55. b6 {[%emt 0:00:00]} Rg1 {[%emt 0:00:00]} 56. b7 {
[%emt 0:00:00]} Rb1+ {[%emt 0:00:00]} 57. Kc5 {[%emt 0:00:00]} Rc1+ {[%emt 0:
00:00]} 58. Kb6 {[%emt 0:00:00]} Rb1+ {[%emt 0:00:00]} 59. Kc7 {[%emt 0:00:00]}
Rc1+ {[%emt 0:00:00]} 60. Kd8 {[%emt 0:00:00]} Rb1 {[%emt 0:00:00]} 61. Ra6+ {
[%emt 0:00:00]} Kf5 {[%emt 0:00:00]} 62. Kc7 {[%emt 0:00:00]} g3 {[%emt 0:00:
00]} 63. Rb6 {[%emt 0:00:00]} Rxb6 {[%emt 0:00:00]} 64. Kxb6 {[%emt 0:00:00]}
g2 {[%emt 0:00:00]} 65. b8=Q {[%emt 0:00:00]} g1=Q {[%emt 0:00:00]} 66. Qe5+ {
[%emt 0:00:00]} Kg6 {[%emt 0:00:00]} 67. Kc6 {[%emt 0:00:00]} Qa1 {[%emt 0:00:
00]} 68. Qg3+ {[%emt 0:00:00]} Kf5 {[%emt 0:00:00]} 69. Qf4+ {[%emt 0:00:00]}
Kg6 {[%emt 0:00:00]} 70. Kxd5 {[%emt 0:00:00]} Qa8+ {[%emt 0:00:00]} 71. Kc4 {
[%emt 0:00:00]} Qa4+ {[%emt 0:00:00]} 72. Kc3 {[%emt 0:00:00]} Qa1+ {[%emt 0:
00:00]} 73. Kd2 {[%emt 0:00:00]} Qb2+ {[%emt 0:00:00]} 74. Ke1 {[%emt 0:00:00]}
Qg2 {[%emt 0:00:00]} 75. Qf1 {[%emt 0:00:00]} Qc2 {[%emt 0:00:00]} 76. Qf3 {
[%emt 0:00:00]} Kg7 {[%emt 0:00:00]} 77. Kf1 {[%emt 0:00:00]} Qc1+ {[%emt 0:00:
00]} 78. Kg2 {[%emt 0:00:00]} Qc2+ {[%emt 0:00:00]} 79. Kg3 {[%emt 0:00:00]}
Qc7+ {[%emt 0:00:00]} 80. Kh3 {[%emt 0:00:00]} Qc3 {[%emt 0:00:00]} 81. d5 {
[%emt 0:00:00]} Qd3 {[%emt 0:00:30]} 82. Kg3 {[%emt 0:00:00]} Kg6 {[%emt 0:00:
37]} 83. Qg4+ {[%emt 0:00:00]} Kh7 {[%emt 0:00:30]} 84. Qd7+ {[%emt 0:00:00]}
Kh8 {[%emt 0:00:00]} 85. Qe8+ {[%emt 0:00:00]} Kg7 {[%emt 0:00:00]} 86. Qe7+ {
[%emt 0:00:00]} Kh8 {[%emt 0:00:00]} 87. Qe5+ {[%emt 0:00:00]} Kh7 {[%emt 0:00:
00]} 88. d6 {[%emt 0:00:00]} Qg6+ {[%emt 0:00:00]} 89. Kh4 {[%emt 0:00:00]} Qb1
{[%emt 0:00:00]} 90. Qe7+ {[%emt 0:00:00]} Kg6 {[%emt 0:00:00]} 91. Qe6+ {
[%emt 0:00:00]} Kh7 {[%emt 0:00:00]} 92. d7 {[%emt 0:00:00]} Qe1+ {[%emt 0:00:
00]} 93. Kg5 {[%emt 0:00:00]} Qg3+ {[%emt 0:00:00]} 94. Kf6 {[%emt 0:00:00]}
Qh4+ {[%emt 0:00:00]} 95. Kf7 {[%emt 0:00:00]} Qh5+ {[%emt 0:00:00]} 96. Kf8 {
[%emt 0:00:00]} Qa5 {[%emt 0:00:00]} 97. Qe7+ {[%emt 0:00:00]} Kg6 {[%emt 0:00:
00]} 98. d8=Q {[%emt 0:00:00]} Qf5+ {[%emt 0:00:00]} 99. Kg8 {[%emt 0:00:00]}
Qd5+ {[%emt 0:00:00]} 100. Qxd5 {[%emt 0:00:00]} 1-0

[Event "Gibraltar Masters 18th"]
[Site "Gibraltar"]
[Date "2020.01.30"]
[Round "10.4"]
[White "Deac, Bogdan-Daniel"]
[Black "Topalov, Veselin"]
[Result "1/2-1/2"]
[ECO "D18"]
[WhiteElo "2626"]
[BlackElo "2738"]
[PlyCount "63"]
[EventDate "2020.01.21"]
[EventType "swiss"]
[EventRounds "10"]
[EventCountry "GGB"]
[SourceTitle "BritBase"]
[Source "John Saunders"]
[SourceDate "2021.06.05"]
[SourceVersion "1"]
[SourceVersionDate "2021.06.05"]
[SourceQuality "1"]
[TimeControl "40/100:0"]
[WhiteClock "0:18:02"]
[BlackClock "0:14:32"]

1. Nf3 {[%emt 0:00:00]} d5 {[%emt 0:00:00]} 2. d4 {[%emt 0:00:00]} Nf6 {
[%emt 0:00:00]} 3. c4 {[%emt 0:00:00]} c6 {[%emt 0:00:00]} 4. Nc3 {[%emt 0:00:
00]} dxc4 {[%emt 0:00:00]} 5. a4 {[%emt 0:00:00]} Bf5 {[%emt 0:00:00]} 6. Nh4 {
[%emt 0:00:00]} e6 {[%emt 0:00:00]} 7. Nxf5 {[%emt 0:00:00]} exf5 {[%emt 0:00:
00]} 8. e3 {[%emt 0:00:00]} Bb4 {[%emt 0:00:00]} 9. Bxc4 {[%emt 0:00:00]} O-O {
[%emt 0:00:00]} 10. O-O {[%emt 0:00:00]} Nbd7 {[%emt 0:00:00]} 11. Qd3 {
[%emt 0:00:00]} g6 {[%emt 0:00:00]} 12. f3 {[%emt 0:00:00]} Qe7 {[%emt 0:00:00]
} 13. e4 {[%emt 0:00:00]} Rad8 {[%emt 0:00:00]} 14. Bg5 {[%emt 0:00:00]} h6 {
[%emt 0:00:00]} 15. Bh4 {[%emt 0:00:00]} g5 {[%emt 0:00:00]} 16. Bf2 {[%emt 0:
00:00]} Bxc3 {[%emt 0:00:00]} 17. Qxc3 {[%emt 0:00:00]} fxe4 {[%emt 0:00:00]}
18. fxe4 {[%emt 0:00:00]} Nb6 {[%emt 0:00:00]} 19. Bd3 {[%emt 0:00:00]} Nxe4 {
[%emt 0:00:00]} 20. Rae1 {[%emt 0:00:00]} f5 {[%emt 0:00:00]} 21. Qc2 {[%emt 0:
00:00]} Nd5 {[%emt 0:00:00]} 22. Bg3 {[%emt 0:00:00]} Qe6 {[%emt 0:00:00]} 23.
Be5 {[%emt 0:00:00]} g4 {[%emt 0:00:00]} 24. Bxe4 {[%emt 0:00:00]} fxe4 {
[%emt 0:00:00]} 25. Qxe4 {[%emt 0:00:00]} h5 {[%emt 0:00:00]} 26. h3 {[%emt 0:
00:00]} Rxf1+ {[%emt 0:00:00]} 27. Rxf1 {[%emt 0:00:00]} Rf8 {[%emt 0:00:00]}
28. Rxf8+ {[%emt 0:00:00]} Kxf8 {[%emt 0:00:00]} 29. hxg4 {[%emt 0:00:00]} Qxg4
{[%emt 0:00:00]} 30. Qh7 {[%emt 0:00:00]} Qd1+ {[%emt 0:00:00]} 31. Kh2 {
[%emt 0:00:00]} Qg4 {[%emt 0:00:00]} 32. Qxb7 {[%emt 0:00:00]} 1/2-1/2

[Event "Gibraltar Masters 18th"]
[Site "Gibraltar"]
[Date "2020.01.30"]
[Round "10.5"]
[White "Navara, David"]
[Black "Kadric, Denis"]
[Result "1-0"]
[ECO "E61"]
[WhiteElo "2717"]
[BlackElo "2585"]
[PlyCount "77"]
[EventDate "2020.01.21"]
[EventType "swiss"]
[EventRounds "10"]
[EventCountry "GGB"]
[SourceTitle "BritBase"]
[Source "John Saunders"]
[SourceDate "2021.06.05"]
[SourceVersion "1"]
[SourceVersionDate "2021.06.05"]
[SourceQuality "1"]
[TimeControl "40/100:0"]
[WhiteClock "0:02:30"]
[BlackClock "0:00:37"]

1. d4 {[%emt 0:00:00]} d6 {[%emt 0:00:00]} 2. Nf3 {[%emt 0:00:00]} Nf6 {
[%emt 0:00:00]} 3. c4 {[%emt 0:00:00]} g6 {[%emt 0:00:00]} 4. Nc3 {[%emt 0:00:
00]} Bf5 {[%emt 0:00:00]} 5. h3 {[%emt 0:00:00]} Ne4 {[%emt 0:00:00]} 6. Nxe4 {
[%emt 0:00:00]} Bxe4 {[%emt 0:00:00]} 7. Ng5 {[%emt 0:00:00]} Bf5 {[%emt 0:00:
00]} 8. e4 {[%emt 0:00:00]} Bd7 {[%emt 0:00:00]} 9. Be3 {[%emt 0:00:00]} Bg7 {
[%emt 0:00:00]} 10. Be2 {[%emt 0:00:00]} O-O {[%emt 0:00:00]} 11. O-O {[%emt 0:
00:00]} e5 {[%emt 0:00:00]} 12. d5 {[%emt 0:00:00]} a5 {[%emt 0:00:00]} 13. c5
{[%emt 0:00:00]} dxc5 {[%emt 0:00:00]} 14. Qd2 {[%emt 0:00:00]} b6 {[%emt 0:00:
00]} 15. f4 {[%emt 0:00:00]} Qe7 {[%emt 0:00:00]} 16. f5 {[%emt 0:00:00]} h6 {
[%emt 0:00:00]} 17. Nf3 {[%emt 0:00:00]} gxf5 {[%emt 0:00:00]} 18. exf5 {
[%emt 0:00:00]} Bxf5 {[%emt 0:00:00]} 19. Nh4 {[%emt 0:00:00]} Qxh4 {[%emt 0:
00:00]} 20. Rxf5 {[%emt 0:00:00]} Nd7 {[%emt 0:00:00]} 21. Rh5 {[%emt 0:00:00]}
Qb4 {[%emt 0:00:00]} 22. Qc2 {[%emt 0:00:00]} Nf6 {[%emt 0:00:00]} 23. Bc4 {
[%emt 0:00:00]} b5 {[%emt 0:00:00]} 24. Rh4 {[%emt 0:00:00]} e4 {[%emt 0:00:00]
} 25. Bf1 {[%emt 0:00:00]} c4 {[%emt 0:00:00]} 26. Rd1 {[%emt 0:00:00]} Rad8 {
[%emt 0:00:00]} 27. Bxh6 {[%emt 0:00:00]} Qc5+ {[%emt 0:00:00]} 28. Kh1 {
[%emt 0:00:00]} Rxd5 {[%emt 0:00:00]} 29. Rxd5 {[%emt 0:00:00]} Qxd5 {[%emt 0:
00:00]} 30. Qc3 {[%emt 0:00:00]} Bxh6 {[%emt 0:00:00]} 31. Rxh6 {[%emt 0:00:00]
} Nh7 {[%emt 0:00:00]} 32. a4 {[%emt 0:00:00]} Rd8 {[%emt 0:00:00]} 33. Rh4 {
[%emt 0:00:00]} Qf5 {[%emt 0:00:00]} 34. Be2 {[%emt 0:00:00]} Nf6 {[%emt 0:00:
00]} 35. Qg3+ {[%emt 0:00:00]} Qg6 {[%emt 0:00:39]} 36. Qxc7 {[%emt 0:00:00]}
Re8 {[%emt 0:00:11]} 37. axb5 {[%emt 0:00:00]} e3 {[%emt 0:00:03]} 38. b6 {
[%emt 0:00:00]} Qg5 {[%emt 0:00:10]} 39. Rf4 {[%emt 0:00:00]} 1-0

[Event "Gibraltar Masters 18th"]
[Site "Gibraltar"]
[Date "2020.01.30"]
[Round "10.6"]
[White "Kobalia, Mikhail"]
[Black "Le, Quang Liem"]
[Result "1/2-1/2"]
[ECO "C50"]
[WhiteElo "2609"]
[BlackElo "2713"]
[PlyCount "162"]
[EventDate "2020.01.21"]
[EventType "swiss"]
[EventRounds "10"]
[EventCountry "GGB"]
[SourceTitle "BritBase"]
[Source "John Saunders"]
[SourceDate "2021.06.05"]
[SourceVersion "1"]
[SourceVersionDate "2021.06.05"]
[SourceQuality "1"]
[TimeControl "40/100:0"]
[WhiteClock "0:09:57"]
[BlackClock "0:19:14"]

1. e4 {[%emt 0:00:00]} e5 {[%emt 0:00:00]} 2. Nf3 {[%emt 0:00:00]} Nc6 {
[%emt 0:00:00]} 3. Bc4 {[%emt 0:00:00]} Bc5 {[%emt 0:00:00]} 4. O-O {[%emt 0:
00:00]} Nf6 {[%emt 0:00:00]} 5. d3 {[%emt 0:00:00]} O-O {[%emt 0:00:00]} 6. h3
{[%emt 0:00:00]} d6 {[%emt 0:00:00]} 7. a4 {[%emt 0:00:00]} a5 {[%emt 0:00:00]}
8. Re1 {[%emt 0:00:00]} Ne7 {[%emt 0:00:00]} 9. c3 {[%emt 0:00:00]} Ng6 {
[%emt 0:00:00]} 10. d4 {[%emt 0:00:00]} Ba7 {[%emt 0:00:00]} 11. dxe5 {[%emt 0:
00:00]} dxe5 {[%emt 0:00:00]} 12. Qxd8 {[%emt 0:00:00]} Rxd8 {[%emt 0:00:00]}
13. Ng5 {[%emt 0:00:00]} Rd7 {[%emt 0:00:00]} 14. Na3 {[%emt 0:00:00]} h6 {
[%emt 0:00:00]} 15. Nf3 {[%emt 0:00:00]} Bc5 {[%emt 0:00:00]} 16. Bb3 {[%emt 0:
00:00]} Re7 {[%emt 0:00:00]} 17. Nc4 {[%emt 0:00:00]} Be6 {[%emt 0:00:00]} 18.
Ncd2 {[%emt 0:00:00]} Bd7 {[%emt 0:00:00]} 19. Nc4 {[%emt 0:00:00]} Be6 {
[%emt 0:00:00]} 20. Ncd2 {[%emt 0:00:00]} Bd7 {[%emt 0:00:00]} 21. Nc4 {
[%emt 0:00:00]} Bc6 {[%emt 0:00:00]} 22. Bc2 {[%emt 0:00:00]} Nd7 {[%emt 0:00:
00]} 23. Rb1 {[%emt 0:00:00]} Nb6 {[%emt 0:00:00]} 24. Nxb6 {[%emt 0:00:00]}
Bxb6 {[%emt 0:00:00]} 25. Nd2 {[%emt 0:00:00]} Rd7 {[%emt 0:00:00]} 26. Nc4 {
[%emt 0:00:00]} Bc5 {[%emt 0:00:00]} 27. g3 {[%emt 0:00:00]} b6 {[%emt 0:00:00]
} 28. h4 {[%emt 0:00:00]} f6 {[%emt 0:00:00]} 29. b4 {[%emt 0:00:00]} axb4 {
[%emt 0:00:00]} 30. cxb4 {[%emt 0:00:00]} Bd4 {[%emt 0:00:00]} 31. b5 {[%emt 0:
00:00]} Bb7 {[%emt 0:00:00]} 32. Bd2 {[%emt 0:00:00]} Bc5 {[%emt 0:00:00]} 33.
Bc3 {[%emt 0:00:00]} Kh7 {[%emt 0:00:00]} 34. Red1 {[%emt 0:00:00]} Bc8 {
[%emt 0:00:00]} 35. Kg2 {[%emt 0:00:00]} Rxd1 {[%emt 0:00:00]} 36. Rxd1 {
[%emt 0:00:00]} Bg4 {[%emt 0:00:00]} 37. f3 {[%emt 0:00:00]} Be6 {[%emt 0:00:
00]} 38. Nb2 {[%emt 0:00:00]} h5 {[%emt 0:00:00]} 39. Nd3 {[%emt 0:00:00]} Bd6
{[%emt 0:00:00]} 40. Nb4 {[%emt 0:00:00]} Nf8 {[%emt 0:00:00]} 41. Na6 {
[%emt 0:01:52]} Bc4 {[%emt 0:02:36]} 42. Be1 {[%emt 0:00:00]} Ne6 {[%emt 0:00:
00]} 43. Bf2 {[%emt 0:00:00]} Rd8 {[%emt 0:00:00]} 44. Rc1 {[%emt 0:00:00]} Ba3
{[%emt 0:00:00]} 45. Rd1 {[%emt 0:00:00]} Rd6 {[%emt 0:00:00]} 46. Rxd6 {
[%emt 0:00:00]} Bxd6 {[%emt 0:00:00]} 47. Nb8 {[%emt 0:00:00]} Nd8 {[%emt 0:00:
00]} 48. f4 {[%emt 0:00:00]} g6 {[%emt 0:00:00]} 49. Be3 {[%emt 0:00:00]} Kg7 {
[%emt 0:00:00]} 50. Kf3 {[%emt 0:00:00]} Be6 {[%emt 0:00:00]} 51. fxe5 {
[%emt 0:00:00]} Bg4+ {[%emt 0:00:00]} 52. Kf2 {[%emt 0:00:00]} Bxe5 {[%emt 0:
00:00]} 53. Bb3 {[%emt 0:00:00]} Kf8 {[%emt 0:00:00]} 54. Na6 {[%emt 0:00:00]}
Ke7 {[%emt 0:00:00]} 55. Bd2 {[%emt 0:00:00]} Be6 {[%emt 0:00:00]} 56. Bc2 {
[%emt 0:00:00]} Nf7 {[%emt 0:00:00]} 57. Nb4 {[%emt 0:00:00]} Bd4+ {[%emt 0:00:
00]} 58. Kg2 {[%emt 0:00:00]} Ne5 {[%emt 0:00:00]} 59. Nd5+ {[%emt 0:00:00]}
Bxd5 {[%emt 0:00:00]} 60. exd5 {[%emt 0:00:00]} Kd6 {[%emt 0:00:00]} 61. Bf4 {
[%emt 0:00:00]} f5 {[%emt 0:00:00]} 62. Bb3 {[%emt 0:00:02]} Kc5 {[%emt 0:00:
00]} 63. Bxe5 {[%emt 0:00:00]} Bxe5 {[%emt 0:00:00]} 64. Kf3 {[%emt 0:00:00]}
Bd6 {[%emt 0:00:00]} 65. Bc2 {[%emt 0:00:00]} Kxd5 {[%emt 0:00:00]} 66. Bb3+ {
[%emt 0:00:00]} Ke5 {[%emt 0:00:00]} 67. Bf7 {[%emt 0:00:00]} Kf6 {[%emt 0:00:
00]} 68. Be8 {[%emt 0:00:00]} Bb4 {[%emt 0:00:00]} 69. Kg2 {[%emt 0:00:00]} Be1
{[%emt 0:00:00]} 70. Kf3 {[%emt 0:00:00]} g5 {[%emt 0:00:00]} 71. Bxh5 {
[%emt 0:00:00]} gxh4 {[%emt 0:00:00]} 72. gxh4 {[%emt 0:00:00]} Ke5 {[%emt 0:
00:00]} 73. Bg6 {[%emt 0:00:00]} Bxh4 {[%emt 0:00:00]} 74. Bh7 {[%emt 0:00:00]}
f4 {[%emt 0:00:00]} 75. Bc2 {[%emt 0:00:00]} Be7 {[%emt 0:00:00]} 76. Bd1 {
[%emt 0:00:00]} Bd6 {[%emt 0:00:00]} 77. Kg2 {[%emt 0:00:00]} Kd4 {[%emt 0:00:
00]} 78. Bh5 {[%emt 0:00:00]} Kc3 {[%emt 0:00:00]} 79. Bg4 {[%emt 0:00:00]} Kc2
{[%emt 0:00:00]} 80. Bh5 {[%emt 0:00:00]} Kb3 {[%emt 0:00:00]} 81. Bd1+ {
[%emt 0:00:00]} Kb4 {[%emt 0:00:10]} 1/2-1/2

[Event "Gibraltar Masters 18th"]
[Site "Gibraltar"]
[Date "2020.01.30"]
[Round "10.7"]
[White "Adams, Michael"]
[Black "Karthikeyan, Murali"]
[Result "1/2-1/2"]
[ECO "C65"]
[WhiteElo "2694"]
[BlackElo "2606"]
[PlyCount "71"]
[EventDate "2020.01.21"]
[EventType "swiss"]
[EventRounds "10"]
[EventCountry "GGB"]
[SourceTitle "BritBase"]
[Source "John Saunders"]
[SourceDate "2021.06.05"]
[SourceVersion "1"]
[SourceVersionDate "2021.06.05"]
[SourceQuality "1"]
[TimeControl "40/100:0"]
[WhiteClock "0:08:29"]
[BlackClock "0:08:10"]

1. e4 {[%emt 0:00:00]} e5 {[%emt 0:00:00]} 2. Nf3 {[%emt 0:00:00]} Nc6 {
[%emt 0:00:00]} 3. Bb5 {[%emt 0:00:00]} Nf6 {[%emt 0:00:00]} 4. d3 {[%emt 0:00:
00]} Bc5 {[%emt 0:00:00]} 5. Bxc6 {[%emt 0:00:00]} dxc6 {[%emt 0:00:00]} 6. O-O
{[%emt 0:00:00]} Qe7 {[%emt 0:00:00]} 7. Nbd2 {[%emt 0:00:00]} Bg4 {[%emt 0:00:
00]} 8. a3 {[%emt 0:00:00]} Nd7 {[%emt 0:00:00]} 9. b4 {[%emt 0:00:00]} Bd6 {
[%emt 0:00:00]} 10. h3 {[%emt 0:00:00]} Be6 {[%emt 0:00:00]} 11. Bb2 {[%emt 0:
00:00]} O-O {[%emt 0:00:00]} 12. d4 {[%emt 0:00:00]} f6 {[%emt 0:00:00]} 13.
Qe2 {[%emt 0:00:00]} a5 {[%emt 0:00:00]} 14. c4 {[%emt 0:00:00]} exd4 {[%emt 0:
00:00]} 15. c5 {[%emt 0:00:00]} Bf4 {[%emt 0:00:00]} 16. Nxd4 {[%emt 0:00:00]}
Ne5 {[%emt 0:00:00]} 17. Rfd1 {[%emt 0:00:00]} Rfd8 {[%emt 0:00:00]} 18. Nxe6 {
[%emt 0:00:00]} Qxe6 {[%emt 0:00:00]} 19. Nf3 {[%emt 0:00:00]} Qc4 {[%emt 0:00:
00]} 20. Kf1 {[%emt 0:00:00]} axb4 {[%emt 0:00:00]} 21. Bxe5 {[%emt 0:00:00]}
Rxd1+ {[%emt 0:00:00]} 22. Rxd1 {[%emt 0:00:00]} Qxe2+ {[%emt 0:00:00]} 23.
Kxe2 {[%emt 0:00:00]} Bxe5 {[%emt 0:00:00]} 24. Nxe5 {[%emt 0:00:00]} fxe5 {
[%emt 0:00:00]} 25. axb4 {[%emt 0:00:00]} Ra4 {[%emt 0:00:00]} 26. Rb1 {
[%emt 0:00:00]} Kf7 {[%emt 0:00:00]} 27. h4 {[%emt 0:00:00]} h5 {[%emt 0:00:00]
} 28. Rb3 {[%emt 0:00:00]} b6 {[%emt 0:00:00]} 29. Ke3 {[%emt 0:00:00]} g6 {
[%emt 0:00:00]} 30. cxb6 {[%emt 0:00:00]} cxb6 {[%emt 0:00:00]} 31. Rc3 {
[%emt 0:00:00]} Rxb4 {[%emt 0:00:00]} 32. Rxc6 {[%emt 0:00:00]} Rb3+ {[%emt 0:
00:00]} 33. Kd2 {[%emt 0:00:00]} Rb2+ {[%emt 0:00:00]} 34. Ke3 {[%emt 0:00:00]}
Rb3+ {[%emt 0:00:00]} 35. Kd2 {[%emt 0:00:00]} Rb2+ {[%emt 0:00:00]} 36. Ke3 {
[%emt 0:00:00]} 1/2-1/2

[Event "Gibraltar Masters 18th"]
[Site "Gibraltar"]
[Date "2020.01.30"]
[Round "10.8"]
[White "Werle, Jan"]
[Black "Jones, Gawain C B"]
[Result "1/2-1/2"]
[ECO "D87"]
[WhiteElo "2545"]
[BlackElo "2679"]
[PlyCount "48"]
[EventDate "2020.01.21"]
[EventType "swiss"]
[EventRounds "10"]
[EventCountry "GGB"]
[SourceTitle "BritBase"]
[Source "John Saunders"]
[SourceDate "2021.06.05"]
[SourceVersion "1"]
[SourceVersionDate "2021.06.05"]
[SourceQuality "1"]
[TimeControl "40/100:0"]
[WhiteClock "0:34:34"]
[BlackClock "0:55:54"]

1. d4 {[%emt 0:00:00]} Nf6 {[%emt 0:00:00]} 2. c4 {[%emt 0:00:00]} g6 {[%emt 0:
00:00]} 3. Nc3 {[%emt 0:00:00]} d5 {[%emt 0:00:00]} 4. cxd5 {[%emt 0:00:00]}
Nxd5 {[%emt 0:00:00]} 5. e4 {[%emt 0:00:00]} Nxc3 {[%emt 0:00:00]} 6. bxc3 {
[%emt 0:00:00]} Bg7 {[%emt 0:00:00]} 7. Bc4 {[%emt 0:00:00]} c5 {[%emt 0:00:00]
} 8. Ne2 {[%emt 0:00:00]} O-O {[%emt 0:00:00]} 9. O-O {[%emt 0:00:00]} Nc6 {
[%emt 0:00:00]} 10. Be3 {[%emt 0:00:00]} b6 {[%emt 0:00:00]} 11. h4 {[%emt 0:
00:00]} e6 {[%emt 0:00:00]} 12. h5 {[%emt 0:00:00]} Qh4 {[%emt 0:00:00]} 13.
hxg6 {[%emt 0:00:00]} hxg6 {[%emt 0:00:00]} 14. f3 {[%emt 0:00:00]} cxd4 {
[%emt 0:00:00]} 15. cxd4 {[%emt 0:00:00]} Bb7 {[%emt 0:00:00]} 16. Rc1 {
[%emt 0:00:00]} Rad8 {[%emt 0:00:00]} 17. Qd2 {[%emt 0:00:00]} Qe7 {[%emt 0:00:
00]} 18. Rfd1 {[%emt 0:00:00]} Nxd4 {[%emt 0:00:00]} 19. Nxd4 {[%emt 0:00:00]}
e5 {[%emt 0:00:00]} 20. Bb3 {[%emt 0:00:00]} exd4 {[%emt 0:00:00]} 21. Bg5 {
[%emt 0:00:00]} Qd6 {[%emt 0:00:00]} 22. Bf4 {[%emt 0:00:00]} Qe7 {[%emt 0:00:
00]} 23. Bg5 {[%emt 0:00:00]} Qd6 {[%emt 0:00:00]} 24. Bf4 {[%emt 0:00:00]} Qe7
{[%emt 0:00:00]} 1/2-1/2